fUST/lending_fUST_20240729
["ID","MTS","AMOUNT","RATE_DAILY","PERIOD"]
[333503871,1722217774120,-500.0,0.00015684,2]
[333503872,1722217774249,-510.94252295,0.00015684,2]
[333503873,1722217774270,-403.01957884,0.00015684,2]
[333503874,1722217774292,-352.67384343,0.00015684,2]
[333503875,1722217774314,-508.68828693,0.00015684,2]
[333503876,1722217774335,-306.4692089,0.00015684,2]
[333503877,1722217784499,150.112233,0.00013,2]
[333503900,1722217832645,-265.60779524,0.00015584,2]
[333503901,1722217832655,-309.67544889,0.00015683,2]
[333503902,1722217832665,-500.0,0.00015683,2]
[333503903,1722217832675,-346.75614326,0.00015683,2]
[333503904,1722217832685,-198.17715402,0.00015684,2]
[333503905,1722217832694,-505.04918331,0.00015684,2]
[333503906,1722217832703,-315.09836181,0.00015684,2]
[333503907,1722217832715,-332.03201711,0.00015684,2]
[333503908,1722217832725,-500.0,0.00015684,2]
[333503909,1722217832734,-506.21536931,0.00015684,2]
[333503910,1722217832743,-417.2037899,0.00015684,2]
[333503911,1722217832753,-500.0,0.00015684,2]
[333503912,1722217832763,-355.09737672,0.00015684,2]
[333503913,1722217832778,-152.1824731,0.00015684,2]
[333503914,1722217832788,-506.3153374,0.00015684,2]
[333503915,1722217832798,-209.9921895,0.00015684,2]
[333503916,1722217832810,-296.07427323,0.00015684,2]
[333503917,1722217832819,-406.33203309,0.00015684,2]
[333503918,1722217832831,-102.64820032,0.00015684,2]
[333503919,1722217832841,-505.88923003,0.00015684,2]
[333503920,1722217832851,-513.02205192,0.00015684,2]
[333503921,1722217832860,-500.0,0.00015684,2]
[333503922,1722217832870,-500.0,0.00015684,2]
[333503923,1722217832880,-508.0516498,0.00015684,2]
[333503924,1722217832890,-508.62904641,0.00015684,2]
[333503925,1722217832899,-153.75775445,0.00015684,2]
[333503926,1722217832914,-346.24224555,0.00015684,2]
[333503927,1722217832924,-503.63513826,0.00015684,2]
[333503928,1722217832933,-219.58313071,0.00015684,2]
[333503929,1722217832945,-280.41686929,0.00015684,2]
[333503930,1722217832955,-512.14994169,0.00015684,2]
[333503931,1722217832965,-240.52411764,0.00015684,2]
[333503951,1722217840339,-267.64812216,0.00015684,2]
[333503953,1722217840349,-508.42559014,0.00015684,2]
[333503955,1722217840360,-203.50628035,0.00015684,2]
[333503956,1722217840370,-507.38856177,0.00015684,2]
[333503958,1722217840379,-500.0,0.00015684,2]
[333503960,1722217840388,-500.0,0.00015684,2]
[333503961,1722217840400,-506.00613158,0.00015684,2]
[333503962,1722217840410,-508.80929164,0.00015684,2]
[333503963,1722217840421,-387.41602236,0.00015684,2]
[333503964,1722217840436,-112.58397764,0.00015684,2]
[333503965,1722217840446,-500.0,0.00015684,2]
[333503966,1722217840457,-245.22751242,0.00015684,2]
[333503967,1722217840467,-541.38845657,0.00015684,2]
[333503968,1722217840477,-500.0,0.00015684,2]
[333503969,1722217840487,-507.70588882,0.00015684,2]
[333503970,1722217840498,-504.65719701,0.00015684,2]
[333503971,1722217840509,-500.0,0.00015684,2]
[333503972,1722217840520,-502.43261833,0.00015684,2]
[333503973,1722217840530,-504.6627744,0.00015684,2]
[333503975,1722217840542,-500.0,0.00015684,2]
[333503978,1722217840554,-504.80533324,0.00015684,2]
[333503979,1722217840564,-505.99838522,0.00015684,2]
[333503981,1722217840574,-503.09482442,0.00015684,2]
[333503983,1722217840584,-505.87848395,0.00015684,2]
[333503984,1722217840593,-500.0,0.00015684,2]
[333503985,1722217840603,-504.1194756,0.00015684,2]
[333503986,1722217840615,-503.03797591,0.00015684,2]
[333503987,1722217840624,-505.26899047,0.00015684,2]
[333503988,1722217840634,-500.0,0.00015684,2]
[333503989,1722217840646,-502.89612588,0.00015684,2]
[333503990,1722217840658,-506.67013869,0.00015684,2]
[333503991,1722217840669,-508.80677393,0.00015684,2]
[333503992,1722217840680,-500.0,0.00015684,2]
[333503993,1722217840689,-558.31539789,0.00015684,2]
[333503994,1722217840699,-517.06999586,0.00015684,2]
[333503995,1722217840710,-540.88113109,0.00015684,2]
[333503996,1722217840721,-500.0,0.00015684,2]
[333503997,1722217840731,-505.53508818,0.00015684,2]
[333503998,1722217840741,-378.72131328,0.00015684,2]
[333503999,1722217840757,-124.57311705,0.00015684,2]
[333504000,1722217840766,-507.2114558,0.00015684,2]
[333504001,1722217840775,-507.86601547,0.00015684,2]
[333504002,1722217840784,-295.66481375,0.00015684,2]
[333504003,1722217840794,-506.10285512,0.00015684,2]
[333504004,1722217840804,-500.0,0.00015684,2]
[333504005,1722217840814,-505.41109925,0.00015684,2]
[333504006,1722217840826,-500.93476258,0.00015684,2]
[333504007,1722217840836,-515.27918947,0.00015684,2]
[333504008,1722217840846,-561.02270325,0.00015684,2]
[333504009,1722217840855,-509.67949664,0.00015684,2]
[333504010,1722217840867,-506.25454566,0.00015684,2]
[333504011,1722217840879,-500.0,0.00015684,2]
[333504012,1722217840888,-500.0,0.00015684,2]
[333504013,1722217840898,-512.06593889,0.00015684,2]
[333504014,1722217840909,-557.88355563,0.00015684,2]
[333504015,1722217840919,-500.0,0.00015684,2]
[333504016,1722217840927,-500.0,0.00015684,2]
[333504017,1722217840936,-508.87427284,0.00015684,2]
[333504018,1722217840946,-505.32790655,0.00015684,2]
[333504019,1722217840955,-513.17964308,0.00015684,2]
[333504020,1722217840964,-536.91558795,0.00015684,2]
[333504021,1722217840973,-460.61437126,0.00015684,2]
[333504022,1722217840983,-509.90005408,0.00015684,2]
[333504023,1722217840992,-506.54406367,0.00015684,2]
[333504024,1722217841002,-505.93897537,0.00015684,2]
[333504025,1722217841011,-503.43835598,0.00015684,2]
[333504026,1722217841021,-503.39115055,0.00015684,2]
[333504027,1722217841030,-589.36914766,0.00015684,2]
[333504028,1722217841040,-510.90090565,0.00015684,2]
[333504029,1722217841050,-502.82609563,0.00015684,2]
[333504030,1722217841059,-500.0,0.00015684,2]
[333504031,1722217841068,-162.6509099,0.00015684,2]
[333504032,1722217841080,-337.3490901,0.00015684,2]
[333504033,1722217841090,-362.93865549,0.00015684,2]
[333504034,1722217841102,-137.06134451,0.00015684,2]
[333504035,1722217841112,-504.35302781,0.00015684,2]
[333504036,1722217841123,-507.60159449,0.00015684,2]
[333504037,1722217841132,-504.0080949,0.00015684,2]
[333504038,1722217841146,-500.0,0.00015684,2]
[333504039,1722217841156,-500.0,0.00015684,2]
[333504040,1722217841165,-763.48,0.00015684,2]
[333504041,1722217841174,-507.63473838,0.00015684,2]
[333504042,1722217841184,-514.53682061,0.00015684,2]
[333504043,1722217841193,-502.36,0.00015684,2]
[333504044,1722217841203,-504.5306534,0.00015684,2]
[333504045,1722217841212,-503.50357997,0.00015684,2]
[333504046,1722217841222,-495.13014593,0.00015684,2]
[333504070,1722217843406,-10.0007913,0.00015684,2]
[333504071,1722217843417,-385.9192087,0.00015684,2]
[333504072,1722217843428,-114.0807913,0.00015684,2]
[333504073,1722217843438,-506.56970037,0.00015684,2]
[333504074,1722217843447,-500.0,0.00015684,2]
[333504075,1722217843457,-509.18574661,0.00015684,2]
[333504077,1722217843467,-500.0,0.00015684,2]
[333504079,1722217843478,-500.0,0.00015684,2]
[333504081,1722217843487,-505.54032336,0.00015684,2]
[333504083,1722217843497,-500.0,0.00015684,2]
[333504085,1722217843506,-500.0,0.00015684,2]
[333504088,1722217843516,-505.03116395,0.00015684,2]
[333504090,1722217843525,-500.0,0.00015684,2]
[333504092,1722217843534,-503.75785229,0.00015684,2]
[333504094,1722217843544,-500.0,0.00015684,2]
[333504096,1722217843554,-506.86776513,0.00015684,2]
[333504097,1722217843563,-500.0,0.00015684,2]
[333504098,1722217843572,-500.0,0.00015684,2]
[333504099,1722217843582,-500.0,0.00015684,2]
[333504100,1722217843592,-500.0,0.00015684,2]
[333504101,1722217843601,-500.0,0.00015684,2]
[333504102,1722217843612,-504.9449791,0.00015684,2]
[333504103,1722217843622,-500.0,0.00015684,2]
[333504104,1722217843631,-500.0,0.00015684,2]
[333504105,1722217843640,-191.44756299,0.00015684,2]
[333504106,1722217843650,-509.83700501,0.00015684,2]
[333504107,1722217843659,-500.0,0.00015684,2]
[333504108,1722217843669,-506.80839058,0.00015684,2]
[333504109,1722217843678,-746.62,0.00015684,2]
[333504110,1722217843688,-514.47621275,0.00015684,2]
[333504111,1722217843697,-500.0,0.00015684,2]
[333504112,1722217843707,-508.87748555,0.00015684,2]
[333504113,1722217843717,-500.0,0.00015684,2]
[333504114,1722217843726,-500.0,0.00015684,2]
[333504115,1722217843735,-500.0,0.00015684,2]
[333504116,1722217843745,-508.44978561,0.00015684,2]
[333504117,1722217843756,-508.06287879,0.00015684,2]
[333504118,1722217843767,-500.0,0.00015684,2]
[333504119,1722217843777,-500.0,0.00015684,2]
[333504121,1722217843786,-513.25185039,0.00015684,2]
[333504123,1722217843797,-506.85517019,0.00015684,2]
[333504126,1722217843807,-500.0,0.00015684,2]
[333504127,1722217843817,-604.0572261,0.00015684,2]
[333504129,1722217843827,-428.2924565,0.00015694,2]
[333504132,1722217843840,-506.37014841,0.00015694,2]
[333504134,1722217843850,-312.48020744,0.00015694,2]
[333504136,1722217843861,-505.66961826,0.00015694,2]
[333504138,1722217843870,-509.06811076,0.00015694,2]
[333504139,1722217843879,-507.37135623,0.00015694,2]
[333504140,1722217843969,-509.97843713,0.00015694,2]
[333504141,1722217843980,-506.46853331,0.00015694,2]
[333504142,1722217843990,-507.78893357,0.00015694,2]
[333504143,1722217843999,-503.25740556,0.00015694,2]
[333504144,1722217844009,-506.03378128,0.00015694,2]
[333504145,1722217844019,-500.0,0.00015694,2]
[333504146,1722217844029,-507.97877795,0.00015694,2]
[333504147,1722217844038,-509.22630441,0.00015694,2]
[333504148,1722217844048,-506.07542602,0.00015694,2]
[333504149,1722217844057,-505.97016789,0.00015694,2]
[333504150,1722217844067,-505.75543462,0.00015694,2]
[333504151,1722217844076,-507.13848479,0.00015694,2]
[333504152,1722217844085,-508.95750468,0.00015694,2]
[333504153,1722217844095,-500.0,0.00015694,2]
[333504154,1722217844104,-500.0,0.00015694,2]
[333504155,1722217844114,-506.65064962,0.00015694,2]
[333504156,1722217844124,-507.57493204,0.00015694,2]
[333504157,1722217844134,-560.69478643,0.00015694,2]
[333504158,1722217844147,-506.0630901,0.00015694,2]
[333504159,1722217844158,-509.37016206,0.00015694,2]
[333504160,1722217844167,-504.36842145,0.00015694,2]
[333504161,1722217844176,-396.87137903,0.00015694,2]
[333504162,1722217844190,-103.12862097,0.00015694,2]
[333504163,1722217844199,-504.73417164,0.00015694,2]
[333504164,1722217844208,-505.93136742,0.00015694,2]
[333504165,1722217844218,-507.10658094,0.00015694,2]
[333504166,1722217844233,-506.4959887,0.00015694,2]
[333504167,1722217844244,-512.08455093,0.00015694,2]
[333504168,1722217844256,-507.63861067,0.00015694,2]
[333504169,1722217844267,-500.0,0.00015694,2]
[333504170,1722217844277,-500.0,0.00015694,2]
[333504171,1722217844286,-500.0,0.00015694,2]
[333504172,1722217844296,-567.91981207,0.00015694,2]
[333504173,1722217844306,-172.43784217,0.00015694,2]
[333504174,1722217844317,-505.77242409,0.00015694,2]
[333504175,1722217844330,-469.79290749,0.00015694,2]
[333504176,1722217844340,-595.17209545,0.00015694,2]
[333504177,1722217844350,-503.95399875,0.00015694,2]
[333504178,1722217844362,-503.19864123,0.00015694,2]
[333504179,1722217844371,-506.29826882,0.00015694,2]
[333504180,1722217844382,-504.90928122,0.00015694,2]
[333504181,1722217844391,-504.6382039,0.00015694,2]
[333504182,1722217844401,-500.0,0.00015694,2]
[333504183,1722217844410,-339.51023354,0.00015694,2]
[333504194,1722217847859,-348.86918316,0.00015684,2]
[333504195,1722217847871,-162.99572823,0.00015694,2]
[333504196,1722217847881,-505.47051142,0.00015694,2]
[333504197,1722217847892,-502.84378066,0.00015694,2]
[333504198,1722217847902,-531.39312426,0.00015694,2]
[333504199,1722217847913,-502.77087921,0.00015694,2]
[333504200,1722217847923,-506.06543833,0.00015694,2]
[333504201,1722217847933,-502.55784092,0.00015694,2]
[333504202,1722217847944,-502.14630172,0.00015694,2]
[333504203,1722217847955,-505.65517342,0.00015694,2]
[333504204,1722217847966,-505.78364479,0.00015694,2]
[333504205,1722217847977,-502.14629861,0.00015694,2]
[333504206,1722217847988,-506.47645864,0.00015694,2]
[333504207,1722217847998,-508.14092459,0.00015694,2]
[333504208,1722217848009,-503.62001656,0.00015694,2]
[333504209,1722217848020,-505.68014479,0.00015694,2]
[333504210,1722217848030,-501.57485765,0.00015694,2]
[333504211,1722217848041,-504.6341787,0.00015694,2]
[333504212,1722217848052,-500.0,0.00015694,2]
[333504213,1722217848063,-501.82359962,0.00015694,2]
[333504214,1722217848074,-530.16680508,0.00015694,2]
[333504215,1722217848084,-129.48470785,0.00015694,2]
[333504216,1722217848098,-414.10492396,0.00015694,2]
[333504217,1722217848108,-507.14493928,0.00015694,2]
[333504218,1722217848120,-507.93009034,0.00015694,2]
[333504219,1722217848131,-557.78854272,0.00015694,2]
[333504220,1722217848141,-501.55865463,0.00015694,2]
[333504221,1722217848155,-500.0,0.00015694,2]
[333504222,1722217848166,-504.5067654,0.00015694,2]
[333504223,1722217848177,-504.47833541,0.00015694,2]
[333504224,1722217848295,-502.04364993,0.00015694,2]
[333504225,1722217848306,-504.38975404,0.00015694,2]
[333504226,1722217848316,-746.62,0.00015694,2]
[333504227,1722217848326,-746.62,0.00015694,2]
[333504228,1722217848336,-504.1511985,0.00015694,2]
[333504229,1722217848346,-505.71225225,0.00015694,2]
[333504230,1722217848355,-500.0,0.00015695,2]
[333504231,1722217848366,-746.62,0.00015697,2]
[333504232,1722217848376,-31621.0665326,0.00015698,2]
[333504233,1722217848385,-535.97819759,0.00015698,2]
[333504234,1722217848395,-151.0,0.00015698,2]
[333504235,1722217848405,-162.738651,0.00015698,2]
[333504236,1722217848414,-194.132901,0.00015698,2]
[333504237,1722217848424,-194.132901,0.00015698,2]
[333504238,1722217848433,-746.62,0.00015698,2]
[333504239,1722217848443,-746.62,0.00015706,2]
[333504240,1722217848453,-9639.05525324,0.00015708,2]
[333504241,1722217848463,-1162.16976726,0.00015708,2]
[333504242,1722217848473,-4180.04028286,0.00015708,2]
[333504243,1722217848483,-6999.1698205,0.00015708,2]
[333504244,1722217848492,-4018.01957075,0.00015708,2]
[333504245,1722217848501,-2277.39949897,0.00015708,3]
[333504246,1722217848511,-2249.60364788,0.00015708,2]
[333504247,1722217848520,-2123.86369588,0.00015708,2]
[333504248,1722217848528,-1762.71873065,0.00015708,2]
[333504249,1722217848538,-3086.6528281,0.00015708,2]
[333504250,1722217848547,-1437.78611875,0.00015708,2]
[333504251,1722217848556,-746.62,0.00015708,2]
[333504252,1722217848566,-2138.42102512,0.00015708,2]
[333504253,1722217848575,-2138.42102512,0.00015708,2]
[333504254,1722217848584,-746.62,0.00015745,2]
[333504255,1722217848594,-746.62,0.0001585,2]
[333504256,1722217848603,-1092.21,0.000159,2]
[333504257,1722217848614,-159.570145,0.000159,2]
[333504258,1722217848623,-194.132901,0.000159,2]
[333504259,1722217848633,-194.132901,0.000159,2]
[333504260,1722217848642,-152.482071,0.000159,2]
[333504261,1722217848652,-151.684871,0.000159,2]
[333504262,1722217848661,-746.62,0.0001594,2]
[333504263,1722217848671,-746.62,0.00015942,2]
[333504264,1722217848680,-746.62,0.0001595,2]
[333504265,1722217848689,-746.62,0.0001595,2]
[333504266,1722217848700,-31621.0665326,0.00015958,2]
[333504267,1722217848711,-500.23608411,0.00015958,2]
[333504268,1722217848720,-643.39454635,0.00015958,2]
[333504269,1722217848730,-242.79939812,0.00015958,2]
[333504270,1722217848739,-500.0,0.00015958,2]
[333504271,1722217848749,-573.99243059,0.00015958,2]
[333504272,1722217848759,-500.0,0.00015958,2]
[333504273,1722217848769,-500.0,0.00015958,2]
[333504274,1722217848778,-515.96533788,0.00015958,2]
[333504275,1722217848788,-478.29930868,0.00015958,2]
[333504276,1722217848797,-451.32215933,0.00015958,2]
[333504277,1722217848807,-365.34530864,0.00015958,2]
[333504278,1722217848817,-500.0,0.00015958,2]
[333504279,1722217848826,-500.0,0.00015958,2]
[333504280,1722217848836,-500.0,0.00015958,2]
[333504281,1722217848846,-500.0,0.00015958,2]
[333504282,1722217848857,-500.0,0.00015958,2]
[333504283,1722217848868,-509.07377855,0.00015958,2]
[333504284,1722217848877,-500.0,0.00015958,2]
[333504285,1722217848887,-500.0,0.00015958,2]
[333504286,1722217848896,-500.0,0.00015958,2]
[333504287,1722217848907,-500.0,0.00015958,2]
[333504288,1722217848917,-151.0,0.00015958,2]
[333504289,1722217848926,-151.0,0.00015958,2]
[333504290,1722217848937,-562.32866144,0.00015958,2]
[333504291,1722217848948,-500.0,0.00015958,2]
[333504292,1722217848958,-500.0,0.00015958,2]
[333504293,1722217848968,-574.34595322,0.00015958,2]
[333504294,1722217848978,-500.0,0.00015958,2]
[333504295,1722217848987,-763.48,0.00015958,2]
[333504296,1722217848997,-151.0,0.00015958,2]
[333504297,1722217849006,-502.36,0.00015958,2]
[333504298,1722217849016,-500.0,0.00015958,2]
[333504299,1722217849025,-500.0,0.00015958,2]
[333504300,1722217849034,-674.300258,0.00015958,2]
[333504301,1722217849044,-500.0,0.00015958,2]
[333504302,1722217849054,-203.3704922,0.00015958,2]
[333504303,1722217849064,-674.300258,0.00015958,2]
[333504304,1722217849074,-500.0,0.00015958,2]
[333504305,1722217849084,-500.0,0.00015958,2]
[333504306,1722217849094,-496.70102218,0.00015958,2]
[333504307,1722217849103,-436.8118048,0.00015958,2]
[333504308,1722217849114,-596.13672713,0.00015958,2]
[333504309,1722217849124,-194.132901,0.00015958,2]
[333504310,1722217849133,-500.0,0.00015958,2]
[333504311,1722217849143,-194.132901,0.00015958,2]
[333504312,1722217849155,-153.56813834,0.00015958,2]
[333504313,1722217849165,-500.0,0.00015958,2]
[333504314,1722217849174,-599.55581137,0.00015958,2]
[333504315,1722217849183,-746.62,0.00015958,2]
[333504316,1722217849193,-500.0,0.00015958,2]
[333504317,1722217849203,-500.0,0.00015958,2]
[333504318,1722217849212,-500.0,0.00015958,2]
[333504319,1722217849222,-500.0,0.00015958,2]
[333504320,1722217849231,-500.0,0.00015958,2]
[333504321,1722217849241,-500.0,0.00015958,2]
[333504322,1722217849250,-500.0,0.00015968,2]
[333504323,1722217849260,-500.0,0.00015968,2]
[333504324,1722217849269,-408.95770899,0.00015968,2]
[333504325,1722217849279,-152.915083,0.00015968,2]
[333504326,1722217849289,-151.232442,0.00015968,2]
[333504327,1722217849298,-159.344906,0.00015968,2]
[333504328,1722217849307,-151.666649,0.00015968,2]
[333504329,1722217849317,-352.55982609,0.00015968,2]
[333504330,1722217849327,-152.684265,0.00015968,2]
[333504331,1722217849336,-553.4247512,0.00015968,2]
[333504332,1722217849346,-151.0,0.00015968,2]
[333504333,1722217849355,-151.0,0.00015968,2]
[333504334,1722217849365,-151.0,0.00015968,2]
[333504335,1722217849374,-500.0,0.00015968,2]
[333504336,1722217849383,-500.0,0.00015968,2]
[333504337,1722217849392,-643.55624672,0.00015968,2]
[333504338,1722217849402,-746.62,0.00015968,2]
[333504339,1722217849411,-203.94090564,0.0001602,2]
[333504340,1722217849421,-746.62,0.00016027,2]
[333504341,1722217849430,-151.0,0.00016028,2]
[333504342,1722217849440,-23044.28739881,0.00016038,2]
[333504343,1722217849449,-569.81437004,0.00016038,2]
[333504344,1722217849459,-32123.41476931,0.00016038,2]
[333504345,1722217884413,367.021591,0.00014247,2]
[333504346,1722218539104,164.05223,0.00012986,2]
[333504347,1722218610044,5273.75443527,0.00012986,2]
[333504348,1722218620752,2117.01873223,0.00012986,2]
[333504350,1722218738090,-221.063122,0.00014487,2]
[333504351,1722218738113,-36.20629477,0.00014689,2]
[333504352,1722218814486,156.71363679,9.999e-05,2]
[333504353,1722218827115,-191.51035431,0.00014146,2]
[333504354,1722218827137,-300.0,0.00014689,2]
[333504355,1722218827159,-273.9536097,0.0001469,2]
[333504356,1722218832142,-326.884338,0.0001469,2]
[333504357,1722218839157,-1321.86053332,0.0001469,2]
[333504358,1722218847653,-1397.94900249,0.0001469,2]
[333504359,1722218945122,-374.96891,0.00014247,2]
[333504360,1722218945143,-300.0,0.00014689,2]
[333504361,1722218945164,-300.0,0.00014689,2]
[333504362,1722218945184,-3643.82477392,0.0001469,2]
[333504363,1722218951088,-15890.82243503,0.0001469,2]
[333504364,1722218969102,-150.112233,0.00015,2]
[333504365,1722218969125,-319.68444214,0.00015583,2]
[333504366,1722218969148,-30.20332486,0.00015583,2]
[333504368,1722219026171,163.549754,0.00012986,2]
[333504748,1722219038464,-221.0631228,0.0001464,2]
[333504749,1722219038474,-279.92807728,0.0001469,2]
[333504753,1722219038645,-29720.07192272,0.0001469,2]
[333504754,1722219038656,-167.50313913,0.00015583,2]
[333504755,1722219038667,-197.70646398,0.0001559,2]
[333504756,1722219038677,-197.70646398,0.00015596,2]
[333504757,1722219038686,-586.039452,0.000156,5]
[333504758,1722219038696,-197.70646398,0.00015603,2]
[333504759,1722219038707,-197.70646398,0.00015609,2]
[333504760,1722219038716,-500.0,0.00015672,2]
[333504761,1722219038725,-250.2232131,0.00015672,2]
[333504762,1722219038735,-176.24508812,0.00015672,2]
[333504763,1722219038748,-500.0,0.00015672,2]
[333504764,1722219038758,-237.72982882,0.00015672,2]
[333504765,1722219038767,-271.59517358,0.00015672,2]
[333504766,1722219038777,-592.72930028,0.00015672,2]
[333504767,1722219038787,-500.0,0.00015672,2]
[333504768,1722219038797,-500.0,0.00015672,2]
[333504769,1722219038807,-1316.2119662,0.00015673,2]
[333504770,1722219038816,-1316.2119662,0.00015674,2]
[333504771,1722219038827,-500.0,0.00015682,2]
[333504772,1722219038836,-500.0,0.00015682,2]
[333504773,1722219038845,-500.0,0.00015682,2]
[333504774,1722219038855,-500.0,0.00015682,2]
[333504775,1722219038866,-500.0,0.00015682,2]
[333504776,1722219038876,-174.34425422,0.00015682,2]
[333504777,1722219038886,-500.0,0.00015682,2]
[333504778,1722219038895,-500.0,0.00015682,2]
[333504779,1722219038905,-203.39669749,0.00015683,2]
[333504780,1722219038914,-506.65070889,0.00015683,2]
[333504781,1722219038924,-500.0,0.00015683,2]
[333504782,1722219038934,-500.0,0.00015683,2]
[333504783,1722219038945,-500.0,0.00015683,2]
[333504784,1722219038954,-223.19569378,0.00015683,2]
[333504785,1722219039105,-276.80430622,0.00015683,2]
[333504786,1722219039115,-500.0,0.00015683,2]
[333504787,1722219039125,-500.0,0.00015683,2]
[333504788,1722219039135,-500.0,0.00015683,2]
[333504789,1722219039144,-648.0860893,0.00015683,2]
[333504790,1722219039154,-506.61314054,0.00015683,2]
[333504791,1722219039163,-500.0,0.00015683,2]
[333504792,1722219039173,-508.87412597,0.00015683,2]
[333504793,1722219039183,-541.66222904,0.00015683,2]
[333504794,1722219039192,-500.0,0.00015683,2]
[333504795,1722219039202,-500.0,0.00015683,2]
[333504796,1722219039212,-500.0,0.00015683,2]
[333504797,1722219039222,-500.0,0.00015683,2]
[333504798,1722219039231,-183.37699339,0.00015683,2]
[333504799,1722219039241,-608.47706536,0.00015683,2]
[333504800,1722219039251,-500.0,0.00015683,2]
[333504801,1722219039260,-500.0,0.00015683,2]
[333504802,1722219039270,-500.0,0.00015683,2]
[333504803,1722219039280,-500.0,0.00015683,2]
[333504804,1722219039290,-500.0,0.00015683,2]
[333504805,1722219039300,-500.0,0.00015683,2]
[333504806,1722219039310,-500.0,0.00015683,2]
[333504807,1722219039321,-500.0,0.00015683,2]
[333504808,1722219039331,-500.0,0.00015683,2]
[333504809,1722219039343,-500.0,0.00015683,2]
[333504810,1722219039352,-500.0,0.00015683,2]
[333504811,1722219039362,-500.0,0.00015683,2]
[333504812,1722219039371,-500.0,0.00015683,2]
[333504813,1722219039381,-500.0,0.00015683,2]
[333504814,1722219039390,-638.01841379,0.00015683,2]
[333504815,1722219039400,-500.0,0.00015683,2]
[333504816,1722219039411,-500.0,0.00015683,2]
[333504817,1722219039422,-500.0,0.00015683,2]
[333504818,1722219039433,-506.06291689,0.00015683,2]
[333504819,1722219039444,-500.0,0.00015683,2]
[333504820,1722219039455,-500.0,0.00015683,2]
[333504821,1722219039466,-30.23915559,0.00015683,2]
[333504880,1722219040648,-469.76084441,0.00015683,2]
[333504882,1722219040657,-514.28131382,0.00015683,2]
[333504884,1722219040667,-500.0,0.00015683,2]
[333504886,1722219040678,-500.0,0.00015683,2]
[333504888,1722219040687,-500.0,0.00015683,2]
[333504890,1722219040697,-500.0,0.00015683,2]
[333504892,1722219040708,-500.0,0.00015683,2]
[333504894,1722219040718,-500.0,0.00015683,2]
[333504896,1722219040728,-500.0,0.00015683,2]
[333504899,1722219040748,-500.0,0.00015683,2]
[333504901,1722219040763,-500.0,0.00015683,2]
[333504903,1722219040773,-500.0,0.00015683,2]
[333504905,1722219040783,-500.0,0.00015683,2]
[333504907,1722219040795,-500.0,0.00015683,2]
[333504908,1722219040806,-500.0,0.00015683,2]
[333504910,1722219040816,-500.0,0.00015683,2]
[333504912,1722219040828,-605.65908967,0.00015683,2]
[333504914,1722219040841,-500.0,0.00015683,2]
[333504917,1722219040852,-500.0,0.00015683,2]
[333504919,1722219040863,-610.06832868,0.00015683,2]
[333504921,1722219040873,-507.2347691,0.00015683,2]
[333504923,1722219040882,-500.0,0.00015683,2]
[333504925,1722219040892,-1336.24,0.00015683,2]
[333504927,1722219040903,-142.53118831,0.00015683,2]
[333504934,1722219040956,-357.46881169,0.00015683,2]
[333504936,1722219040967,-500.0,0.00015683,2]
[333504938,1722219040978,-500.0,0.00015683,2]
[333504940,1722219040990,-558.6702888,0.00015683,2]
[333504942,1722219041000,-500.0,0.00015683,2]
[333504944,1722219041009,-500.0,0.00015683,2]
[333504946,1722219041019,-500.0,0.00015683,2]
[333504948,1722219041030,-500.0,0.00015683,2]
[333504951,1722219041041,-500.0,0.00015683,2]
[333504953,1722219041052,-500.0,0.00015683,2]
[333504955,1722219041064,-500.0,0.00015683,2]
[333504957,1722219041074,-500.0,0.00015683,2]
[333504959,1722219041084,-500.0,0.00015683,2]